fUSD/lending_fUSD_20240601
["ID","MTS","AMOUNT","RATE_DAILY","PERIOD"]
[328374923,1717280075661,160.23,0.00029808,30]
[328374924,1717280508145,370.24,0.00013035,2]
[328374925,1717280696086,160.23,0.00029808,30]
[328374926,1717280842127,-200.0,0.00013699,2]
[328374927,1717280842149,-275.49823152,0.00013859,2]
[328374943,1717281032024,-2346.13088512,0.00013858,2]
[328374945,1717281032036,-3843.32508297,0.00013858,2]
[328374950,1717281038981,-5403.48247186,0.00013858,2]
[328374951,1717281038994,-3423.1360578,0.00013858,2]
[328374952,1717281039006,-4513.41381917,0.00013858,2]
[328374953,1717281039015,-475.4948,0.000139,2]
[328374954,1717281039024,-1560.14006019,0.000139,2]
[328374955,1717281039033,-7540.9459111,0.00013989,2]
[328374956,1717281039042,-968.6156625,0.00013989,2]
[328374957,1717281039051,-382.8002466,0.00013989,2]
[328374958,1717281039060,-152.76,0.0001399,2]
[328374959,1717281039069,-155.0,0.00013998,2]
[328374960,1717281039078,-1211.54065397,0.00013998,2]
[328374961,1717281039087,-1386.55437292,0.00013998,2]
[328374962,1717281039096,-2220.58096225,0.00013999,2]
[328374963,1717281039107,-388.17167976,0.00013999,2]
[328374964,1717281039116,-166.81757453,0.00013999,2]
[328374965,1717281039126,-155.21175719,0.00013999,2]
[328374966,1717281039135,-167.26660738,0.00013999,2]
[328374967,1717281039144,-310.99682093,0.00013999,2]
[328374968,1717281039153,-115184.85885035,0.00014,2]
[328374969,1717281039170,-3275.23508451,0.00014,2]
[328374995,1717281041802,-781.54993672,0.00014,2]
[328374996,1717281041814,-383.08000002,0.00014,2]
[328375029,1717281043205,-41813.8097525,0.00014,2]
[328375030,1717281043217,-896.08689931,0.00014,2]
[328375035,1717281046329,-88050.81551155,0.00014,2]
[328375036,1717281046342,-1832.0994527,0.00014,2]
[328375037,1717281046443,-852.18109769,0.00014,2]
[328375048,1717281067472,200.0,0.000133,4]
[328375049,1717281069488,500.0,0.000134,4]
[328375050,1717281071587,800.0,0.000135,4]
[328375052,1717281073747,1100.0,0.000136,4]
[328375056,1717281128869,351.72,0.00012834,2]
[328375057,1717281247322,160.23,0.00029808,30]
[328375058,1717281725706,250.0,0.00013596,2]
[328375060,1717281894837,160.23,0.00029808,30]
[328375061,1717281915992,334.13,0.00011623,2]
[328375062,1717282003863,18437.21108722,0.00013601,2]
[328375080,1717282232254,-337.77026414,0.00013602,2]
[328375081,1717282232264,-250.0,0.00013603,2]
[328375082,1717282232275,-285.10323586,0.000137,2]
[328375083,1717282232368,-1384.89676414,0.000137,2]
[328375084,1717282232379,-200.0,0.00013734,2]
[328375085,1717282232388,-1590.54,0.00013735,2]
[328375086,1717282232399,-824.56323586,0.0001376,2]
[328375087,1717282232485,-127.14676414,0.0001376,2]
[328375088,1717282232494,-372.15303996,0.00013804,2]
[328375089,1717282232507,-72.76696004,0.00013804,2]
[328375090,1717282232516,-2435.38491933,0.00013859,2]
[328375091,1717282232654,-1036.78575,0.00013859,2]
[328375139,1717282238240,-1274.25252714,0.00013859,2]
[328375140,1717282238350,-6928.9296938,0.00013859,2]
[328375141,1717282238362,-678.22150474,0.00013859,2]
[328375142,1717282238630,-8536.28631895,0.00013859,2]
[328375256,1717282241065,-780.58517994,0.00013859,2]
[328375335,1717282243747,-1589.74640912,0.00013859,2]
[328375338,1717282246343,-2565.08,0.00013859,2]
[328375339,1717282246355,-2145.44282206,0.00013859,2]
[328375359,1717282256751,296.73263169,0.00012598,2]
[328375360,1717282258122,503.22286571,0.00012458,2]
[328375361,1717282362110,2000.0,0.00034866,30]
[328375362,1717282362771,2000.0,0.00034866,30]
[328375363,1717282363381,2000.0,0.00034866,30]
[328375364,1717282363990,2000.0,0.00034866,30]
[328375365,1717282364542,2000.0,0.00034866,30]
[328375366,1717282365178,2000.0,0.00034866,30]
[328375367,1717282366197,1037.199999,0.00034866,30]
[328375368,1717282367648,157.060207,0.00031,32]
[328375369,1717282472459,328.74,0.0001168,2]
[328375370,1717282505252,160.23,0.00029808,30]
[328375371,1717282506670,405.76,0.0001348,2]
[328375372,1717282541426,690.0,0.00034862,30]
[328375373,1717282631354,7765.74,0.00013542,2]
[328375374,1717282663232,188.0,0.00034862,30]
[328375375,1717282783915,994.51,0.00013484,2]
[328375376,1717282834751,-2374.37106162,0.00013674,2]
[328375377,1717282874264,250.0,0.00013299,2]
[328375378,1717282958097,1188.8,0.00034889,30]
[328375379,1717282985098,250.0,0.00013459,2]
[328375380,1717283067838,160.23,0.00029808,30]
[328375381,1717283068872,312.3,0.00011516,2]
[328375382,1717283141854,690.0,0.00034889,30]
[328375384,1717283313893,662.67,0.00013311,2]
[328375392,1717283431580,-150.0,0.00013672,2]
[328375393,1717283431590,-825.99149859,0.00013673,2]
[328375394,1717283431604,-1369.00764,0.00013673,2]
[328375395,1717283431617,-402.23142703,0.00013673,2]
[328375396,1717283431651,-8322.73946118,0.00013673,2]
[328375397,1717283431726,-1138.03485442,0.00013673,2]
[328375398,1717283431737,-7429.00810255,0.00013673,2]
[328375399,1717283431747,-1000.0,0.00013675,2]
[328375400,1717283431756,-475.85,0.00013699,2]
[328375401,1717283431766,-355.93,0.00013699,2]
[328375402,1717283431775,-3000.0,0.0001372,2]
[328375403,1717283431784,-1522.40001808,0.0001376,2]
[328375433,1717283437460,-169.42,0.00013764,2]
[328375434,1717283437471,-312.3,0.00013779,2]
[328375435,1717283437481,-436.0,0.0001378,2]
[328375436,1717283437499,-370.0328,0.000138,2]
[328375437,1717283437513,-375.5271,0.000138,2]
[328375438,1717283437527,-178.84589632,0.00013857,2]
[328375439,1717283437541,-306.83536219,0.00013857,2]
[328375440,1717283437555,-480.94869717,0.00013857,2]
[328375441,1717283437566,-554.77044773,0.00013857,2]
[328375442,1717283437580,-236.21258496,0.00013857,2]
[328375443,1717283437595,-162.33358875,0.00013857,2]
[328375444,1717283437609,-155.0,0.00013857,2]
[328375445,1717283437622,-291.53456264,0.00013857,2]
[328375446,1717283437635,-480.28343884,0.00013857,2]
[328375447,1717283437648,-150.99,0.00013857,2]
[328375448,1717283437661,-499.99,0.00013857,2]
[328375449,1717283437673,-188.62606965,0.00013858,2]
[328375450,1717283437687,-414.19065516,0.00013858,2]
[328375451,1717283437739,-4693.36533718,0.00013858,2]
[328375452,1717283437752,-999.99,0.00013858,2]
[328375453,1717283437764,-723.19,0.00013858,2]
[328375454,1717283437776,-8145.99,0.00013858,2]
[328375455,1717283437788,-10609.41193986,0.00013859,2]
[328375460,1717283441558,-440.82735343,0.00013859,2]
[328375461,1717283441571,-1076.29379903,0.00013859,2]
[328375463,1717283442696,-58110.58947811,0.00013859,2]
[328375464,1717283442708,-170.64487144,0.00013859,2]
[328375465,1717283442719,-3000.0,0.00013859,2]
[328375466,1717283442729,-56910.4249,0.000139,2]
[328375467,1717283442739,-7500.0,0.000139,2]
[328375468,1717283442750,-355.55556422,0.000139,2]
[328375469,1717283442761,-166.51015099,0.000139,2]
[328375470,1717283442772,-171.09436103,0.000139,2]
[328375471,1717283442784,-347.40216525,0.000139,2]
[328375472,1717283442795,-234.53919679,0.000139,2]
[328375473,1717283442807,-250.0,0.00013969,2]
[328375474,1717283442820,-1051.5580026,0.00013989,2]
[328375475,1717283442831,-307.6343142,0.00013989,2]
[328375476,1717283442842,-23359.9520912,0.00013989,2]
[328375477,1717283442854,-778.4201231,0.00013989,2]
[328375478,1717283442866,-195.66906048,0.0001399,2]
[328375479,1717283442877,-152.89,0.0001399,2]
[328375480,1717283442889,-152.89,0.0001399,2]
[328375481,1717283442901,-152.89,0.0001399,2]
[328375482,1717283442911,-152.89,0.0001399,2]
[328375483,1717283442922,-1298.78853938,0.00013999,2]
[328375484,1717283442933,-206135.41972532,0.00014,2]
[328375485,1717283442944,-783875.73522122,0.00014,2]
[328375486,1717283442963,-1844.54762437,0.00014,2]
[328375487,1717283442975,-3502.86406716,0.00014,2]
[328375488,1717283442999,-318.97806811,0.000139,2]
[328375489,1717283443010,-366.82633055,0.00014,2]
[328375624,1717283445633,-226253.22527584,0.00014,2]
[328375625,1717283446266,-2402.02157339,0.00014,2]
[328375627,1717283446280,-2565.08,0.00014,2]
[328375629,1717283446295,-975.00451163,0.00014,2]
[328375630,1717283456756,155.0,0.00012599,2]
[328375631,1717283487987,300.0,0.000133,4]
[328375632,1717283490091,700.0,0.000134,4]
[328375633,1717283492186,1000.0,0.000135,4]
[328375634,1717283494280,1400.0,0.000136,4]
[328375635,1717283500750,4524.71725859,0.0002,15]
[328375636,1717283600021,376.05,0.00012236,2]
[328375637,1717283602231,500.0,0.00012498,2]
[328375638,1717283740821,690.0,0.00034889,30]
[328375639,1717283799606,2097.38,0.00012962,2]
[328375640,1717283863500,193.0,0.00034889,30]
[328375641,1717283893240,1000.0,0.00013082,2]
[328375642,1717283964142,250.0,0.00013119,2]
[328375643,1717284020511,-200.0,0.00013699,2]
[328375644,1717284020534,-284.74,0.00013699,2]
[328375645,1717284020556,-2333.31828049,0.00013699,2]
[328375646,1717284020580,-1700.0,0.000137,5]
[328375647,1717284020602,-1424.67156861,0.0001379,2]
[328375648,1717284020627,-150.0,0.00013799,2]
[328375649,1717284020649,-379.4439,0.000138,2]
[328375650,1717284020673,-300.0,0.000138,5]
[328375651,1717284020698,-97614.7597,0.000138,2]
[328375652,1717284020723,-1027.4565,0.000138,2]
[328375653,1717284020746,-7500.0,0.000138,2]
[328375654,1717284020770,-196.58513752,0.00013813,2]
[328375655,1717284020793,-196.58513748,0.00013835,2]
[328375656,1717284020816,-196.58513748,0.00013857,2]
[328375657,1717284020838,-499.99,0.00013857,2]
[328375658,1717284020860,-172.48219909,0.00013859,2]
[328375659,1717284020883,-865.53303,0.0001386,2]
[328375660,1717284020904,-12381.60361316,0.00013871,2]
[328375661,1717284020929,-196.58513748,0.00013878,2]
[328375662,1717284020952,-300.0,0.000139,5]
[328375663,1717284020973,-10000.0,0.000139,2]
[328375664,1717284020998,-186933.9665,0.000139,2]
[328375665,1717284021024,-196.58513748,0.000139,2]
[328375666,1717284021046,-250.41989735,0.000139,2]
[328375667,1717284021067,-237.92,0.00013913,2]
[328375668,1717284021090,-1000.0,0.0001393,2]
[328375669,1717284021112,-1115.1487,0.0001393,2]
[328375670,1717284021136,-2674.9962564,0.00013989,2]
[328375671,1717284021159,-12016.1055503,0.00013989,2]
[328375672,1717284021181,-437.9002119,0.00013989,2]
[328375673,1717284021203,-12928.7868325,0.00013989,2]
[328375674,1717284021224,-256.3619285,0.00013989,2]
[328375675,1717284021250,-1039.0611276,0.00013989,2]
[328375676,1717284021272,-195.66906048,0.0001399,2]
[328375677,1717284021294,-152.89,0.0001399,2]
[328375678,1717284021318,-152.89,0.0001399,2]
[328375679,1717284021342,-152.89,0.0001399,2]
[328375680,1717284021364,-204.9501833,0.00013998,2]
[328375681,1717284021386,-189.60975483,0.00013998,2]
[328375682,1717284021410,-2188.02281065,0.00013998,2]
[328375683,1717284021432,-155.0,0.00013998,2]
[328375684,1717284021455,-234.40611588,0.00013998,2]
[328375685,1717284021479,-155.3104335,0.00013998,2]
[328375686,1717284021501,-306.53561288,0.00013998,2]
[328375687,1717284021524,-5510.81382945,0.00013998,2]
[328375688,1717284021547,-207.58824107,0.00013999,2]
[328375689,1717284021568,-309.999998,0.00013999,2]
[328375690,1717284021590,-718.31497258,0.00013999,2]
[328375691,1717284021613,-155.0,0.00013999,2]
[328375692,1717284021640,-155.0,0.00013999,2]
[328375693,1717284021662,-155.0,0.00013999,2]
[328375694,1717284021685,-155.0,0.00013999,2]
[328375695,1717284021708,-6664414.69751376,0.00014,2]
[328375696,1717284021730,-299.15348563,0.00014,2]
[328375697,1717284021751,-180.0617535,0.00014,2]
[328375698,1717284021773,-410.2719242,0.00014,2]
[328375699,1717284021796,-946.5832297,0.00014,2]
[328375700,1717284021818,-161.03410793,0.00014,2]
[328375701,1717284021841,-1120626.034082,0.00014,2]
[328375702,1717284021864,-793232.31724431,0.00014,2]
[328375703,1717284021887,-151.0,0.00014,2]
[328375704,1717284021908,-151.0,0.00014,2]
[328375705,1717284021932,-151.0,0.00014,2]
[328375706,1717284021954,-216.051747,0.00014,2]
[328375707,1717284021977,-151.0,0.00014,2]
[328375708,1717284022002,-152.208952,0.00014,2]
[328375709,1717284022024,-153.15955,0.00014,2]
[328375710,1717284022046,-151.191121,0.00014,2]
[328375711,1717284022068,-151.0,0.00014,2]
[328375712,1717284022090,-151.0,0.00014,2]
[328375713,1717284022113,-151.0,0.00014,2]
[328375714,1717284022136,-151.0,0.00014,2]
[328375715,1717284022157,-155.796904,0.00014,2]
[328375716,1717284022179,-152.655487,0.00014,2]
[328375717,1717284022202,-152.307517,0.00014,2]
[328375718,1717284022225,-151.0,0.00014,2]
[328375719,1717284022248,-151.0,0.00014,2]
[328375720,1717284022270,-151.0,0.00014,2]
[328375721,1717284022293,-151.0,0.00014,2]
[328375722,1717284022315,-151.0,0.00014,2]
[328375723,1717284022337,-151.0,0.00014,2]
[328375724,1717284022359,-233.311236,0.00014,2]
[328375725,1717284022381,-151.0,0.00014,2]
[328375726,1717284022402,-151.0,0.00014,2]
[328375727,1717284022424,-151.0,0.00014,2]
[328375728,1717284022447,-151.0,0.00014,2]
[328375729,1717284022468,-151.0,0.00014,2]
[328375730,1717284022489,-151.0,0.00014,2]
[328375731,1717284022509,-151.0,0.00014,2]
[328375732,1717284022531,-151.0,0.00014,2]
[328375733,1717284022552,-151.0,0.00014,2]
[328375734,1717284022573,-151.0,0.00014,2]
[328375735,1717284022595,-151.0,0.00014,2]
[328375736,1717284022616,-151.0,0.00014,2]
[328375737,1717284022639,-151.0,0.00014,2]
[328375738,1717284022660,-151.0,0.00014,2]
[328375739,1717284022681,-151.0,0.00014,2]
[328375740,1717284022702,-151.0,0.00014,2]
[328375741,1717284022725,-151.0,0.00014,2]
[328375742,1717284022747,-151.0,0.00014,2]
[328375743,1717284022768,-151.0,0.00014,2]
[328375744,1717284022791,-151.0,0.00014,2]
[328375745,1717284022813,-151.0,0.00014,2]
[328375746,1717284022835,-151.0,0.00014,2]
[328375747,1717284022856,-151.0,0.00014,2]
[328375748,1717284022878,-151.0,0.00014,2]
[328375749,1717284022900,-151.0,0.00014,2]
[328375750,1717284022923,-151.0,0.00014,2]
[328375751,1717284022946,-151.0,0.00014,2]
[328375752,1717284022969,-151.0,0.00014,2]
[328375753,1717284022991,-151.0,0.00014,2]
[328375754,1717284023014,-160.898612,0.00014,2]
[328375755,1717284023036,-151.0,0.00014,2]
[328375756,1717284023060,-707.569212,0.00014,2]
[328375757,1717284023082,-151.0,0.00014,2]
[328375758,1717284023105,-151.0,0.00014,2]
[328375759,1717284023130,-151.0,0.00014,2]
[328375760,1717284023151,-152.050105,0.00014,2]
[328375761,1717284023174,-151.689927,0.00014,2]
[328375762,1717284023316,-152.014087,0.00014,2]
[328375763,1717284023340,-151.0,0.00014,2]
[328375764,1717284023364,-151.0,0.00014,2]
[328375765,1717284023388,-151.0,0.00014,2]
[328375766,1717284023410,-151.0,0.00014,2]
[328375767,1717284023434,-151.0,0.00014,2]
[328375768,1717284023460,-151.0,0.00014,2]
[328375769,1717284023482,-151.0,0.00014,2]
[328375770,1717284023505,-153.865542,0.00014,2]
[328375771,1717284023529,-332.221925,0.00014,2]
[328375772,1717284023556,-332.221925,0.00014,2]
[328375773,1717284023579,-151.0,0.00014,2]
[328375774,1717284023603,-151.0,0.00014,2]
[328375775,1717284023626,-151.0,0.00014,2]
[328375776,1717284023652,-332.221925,0.00014,2]
[328375777,1717284023676,-332.221925,0.00014,2]
[328375778,1717284023698,-152.18623,0.00014,2]
[328375779,1717284023720,-151.0,0.00014,2]
[328375780,1717284023741,-151.0,0.00014,2]
[328375781,1717284023762,-151.0,0.00014,2]
[328375782,1717284023783,-152.938169,0.00014,2]
[328375783,1717284023807,-274.785957,0.00014,2]
[328375784,1717284023830,-151.0,0.00014,2]
[328375785,1717284023856,-151.0,0.00014,2]
[328375786,1717284023878,-151.0,0.00014,2]
[328375787,1717284023901,-151.0,0.00014,2]
[328375788,1717284023923,-228.856507,0.00014,2]
[328375789,1717284023945,-151.0,0.00014,2]
[328375790,1717284023967,-151.0,0.00014,2]
[328375791,1717284023990,-151.0,0.00014,2]
[328375792,1717284024013,-152.727526,0.00014,2]
[328375793,1717284024035,-269.592234,0.00014,2]
[328375794,1717284024058,-151.0,0.00014,2]
[328375795,1717284024081,-151.0,0.00014,2]
[328375796,1717284024103,-151.0,0.00014,2]
[328375797,1717284024126,-151.0,0.00014,2]
[328375798,1717284026576,672.190751,0.00014,2]
[328375799,1717284026919,672.190751,0.00014,2]
[328375800,1717284031154,672.190751,0.00014,2]
[328375801,1717284031460,672.190751,0.00014,2]
[328375802,1717284046221,151.0,0.00014,2]
[328375803,1717284046287,151.0,0.00014,2]
[328375804,1717284049971,153.935242,0.00014,2]
[328375805,1717284156048,357.24,0.00012088,2]
[328375806,1717284156457,500.0,0.00012962,2]
[328375807,1717284156822,500.0,0.00012962,2]
[328375808,1717284157287,500.0,0.00012962,2]
[328375809,1717284158432,500.0,0.00012962,2]
[328375810,1717284158856,500.0,0.00012962,2]
[328375811,1717284159196,500.0,0.00012962,2]
[328375812,1717284159545,500.0,0.00012962,2]
[328375813,1717284159893,500.0,0.00012962,2]
[328375814,1717284160229,500.0,0.00012962,2]
[328375815,1717284160580,500.0,0.00012962,2]
[328375816,1717284160924,500.0,0.00012962,2]
[328375817,1717284161278,500.0,0.00012962,2]
[328375818,1717284161608,500.0,0.00012962,2]
[328375819,1717284161940,500.0,0.00012962,2]
[328375820,1717284162386,500.0,0.00012962,2]
[328375821,1717284162747,500.0,0.00012962,2]
[328375822,1717284163868,500.0,0.00012962,2]
[328375823,1717284164296,759.0,0.00012962,2]
[328375824,1717284340775,315.0,0.00034896,30]
[328375825,1717284422841,200.0,0.00013453,2]
[328375826,1717284449170,-475.50098543,0.00013769,2]
[328375827,1717284565432,851.86,0.00013113,2]
[328375828,1717284566539,250.0,0.00013113,2]
[328375831,1717284618047,180.49244642,0.0001356,2]
[328375834,1717284631730,-261.15578167,0.00013657,2]
[328375837,1717284631839,-430.0056,0.00013657,2]
[328375838,1717284631851,-584.21788886,0.00013657,2]
[328375839,1717284631860,-530.45664041,0.00013657,2]
[328375840,1717284631869,-201.3563572,0.00013658,2]
[328375841,1717284631879,-155.0,0.00013658,2]
[328375842,1717284631888,-158.0964661,0.00013659,2]
[328375843,1717284631897,-4285.51253231,0.00013659,2]
[328375844,1717284631906,-327.49243226,0.0001366,2]
[328375845,1717284631916,-2333.31828049,0.0001366,2]
[328375846,1717284631925,-150.0,0.0001366,2]
[328375847,1717284631934,-6884.68439009,0.00013661,2]
[328375848,1717284631946,-644.9424618,0.00013661,2]
[328375849,1717284631955,-214.94886096,0.00013665,2]
[328375850,1717284631964,-214.94886096,0.00013669,2]
[328375851,1717284631974,-716.523695,0.00013765,2]
[328375852,1717284631983,-3823.97398423,0.00013772,2]
[328375853,1717284631994,-621.96488025,0.00013772,2]
[328375854,1717284632009,-307.62329716,0.00013772,2]
[328375855,1717284632019,-701.43132,0.00013784,2]
[328375856,1717284632028,-335.74528217,0.00013791,2]
[328375857,1717284632037,-499.99,0.00013791,2]
[328375858,1717284632047,-237.92,0.00013796,2]
[328375859,1717284632056,-1822.18694555,0.0001386,2]
[328375860,1717284632068,-677.81305445,0.0001386,2]
[328375861,1717284632078,-3899.0556,0.00013889,2]
[328375862,1717284632087,-6772.40791895,0.00013986,2]
[328375863,1717284632096,-645.95513848,0.00013987,2]
[328375864,1717284632105,-155.0,0.00013987,2]
[328375865,1717284632114,-156.60759971,0.00013987,2]
[328375866,1717284632124,-189.42781049,0.00013987,2]
[328375867,1717284632133,-170.9459111,0.00013987,2]
[328375868,1717284632143,-429.14560452,0.00013987,2]
[328375869,1717284632153,-230.26324739,0.00013987,2]
[328375871,1717284632163,-1181.7656568,0.00013987,2]
[328375872,1717284632172,-541.08160965,0.00013989,2]
[328375873,1717284632182,-613.6220333,0.0001399,2]
[328375874,1717284632191,-2853.4269853,0.0001399,2]
[328375875,1717284632200,-14164.8124531,0.0001399,2]
[328375876,1717284632209,-151.0,0.00014,2]
[328375877,1717284632219,-3701.362,0.0001401,2]
[328375878,1717284632228,-3687.636,0.0001401,2]
[328375879,1717284632238,-3708.283,0.0001401,2]
[328375880,1717284632247,-3635.839,0.0001402,2]
[328375881,1717284632257,-2470.2126,0.00014022,2]
[328375882,1717284632266,-3011.78207583,0.00014121,2]
[328375883,1717284632275,-789.12357546,0.00014121,2]
[328375884,1717284632284,-333.70241326,0.00014121,2]
[328375885,1717284632294,-155.58479039,0.00014121,2]
[328375886,1717284632303,-268.59558881,0.00014121,2]
[328375887,1717284632312,-2367.15501921,0.00014121,2]
[328375889,1717284632322,-1651.91112842,0.00014121,2]
[328375891,1717284632331,-190.24426675,0.00014121,2]
[328375893,1717284632340,-272.59168575,0.00014121,2]
[328375895,1717284632350,-192.8968547,0.00014121,2]
[328375897,1717284632359,-156.76647876,0.00014121,2]
[328375899,1717284632369,-155.38673951,0.00014121,2]
[328375901,1717284632378,-155.76551261,0.00014121,2]
[328375903,1717284632387,-329.51037709,0.00014121,2]
[328375905,1717284632397,-155.9308215,0.00014121,2]
[328375907,1717284632407,-804.68514182,0.00014121,2]
[328375909,1717284632416,-687.6604682,0.00014121,2]
[328375911,1717284632426,-1051.47566796,0.00014121,2]
[328375913,1717284632435,-2004.73823716,0.00014121,2]
[328375915,1717284632444,-156.07275302,0.00014121,2]
[328375917,1717284632453,-155.51016798,0.00014121,2]
[328375919,1717284632462,-155.0,0.00014121,2]
[328375921,1717284632472,-155.68551938,0.00014121,2]
[328375923,1717284632481,-1386.50548993,0.00014121,2]
[328375925,1717284632490,-156.02295511,0.00014121,2]
[328375927,1717284632499,-155.0,0.00014121,2]
[328375929,1717284632508,-207.25116372,0.00014121,2]
[328375931,1717284632517,-156.14782945,0.00014121,2]
[328375933,1717284632527,-155.55985314,0.00014121,2]
[328375935,1717284632536,-284.47667412,0.00014121,2]
[328375937,1717284632545,-4432.09212318,0.00014121,2]
[328375939,1717284632554,-324.6854332,0.00014121,2]
[328375941,1717284632563,-156.00145897,0.00014121,2]
[328375943,1717284632572,-490.8225388,0.00014121,2]
[328375945,1717284632582,-1066.71897713,0.00014121,2]
[328375947,1717284632596,-155.65968226,0.00014121,2]
[328375949,1717284632606,-180.41296703,0.00014121,2]
[328375951,1717284632615,-191.66157986,0.00014121,2]
[328375953,1717284632624,-156.80126126,0.00014121,2]
[328375955,1717284632634,-163.39332259,0.00014121,2]
[328375957,1717284632644,-207.45551021,0.00014121,2]
[328375959,1717284632653,-5569.04084293,0.00014121,2]
[328375961,1717284632663,-166.16771595,0.00014121,2]
[328375963,1717284632673,-155.21102934,0.00014121,2]
[328375965,1717284632682,-271.42441619,0.00014121,2]
[328375967,1717284632692,-960.57363014,0.00014121,2]
[328375969,1717284632702,-155.0,0.00014121,2]
[328375971,1717284632711,-155.67316232,0.00014121,2]
[328375973,1717284632720,-155.0,0.00014121,2]
[328375975,1717284632730,-155.3839327,0.00014121,2]
[328375977,1717284632739,-157.48411225,0.00014121,2]
[328375979,1717284632748,-196.62085841,0.00014121,2]
[328375981,1717284632758,-1064.51850023,0.00014121,2]
[328375983,1717284632767,-155.69171516,0.00014121,2]
[328375985,1717284632776,-155.30041863,0.00014121,2]
[328375987,1717284632786,-155.74732272,0.00014121,2]
[328375989,1717284632795,-156.09155198,0.00014121,2]
[328375991,1717284632805,-369.61030645,0.00014121,2]
[328375993,1717284632814,-190.52131642,0.00014121,2]
[328375995,1717284632823,-207.3985061,0.00014121,2]
[328375997,1717284632833,-155.43220333,0.00014121,2]
[328375999,1717284632842,-291.96107167,0.00014121,2]
[328376001,1717284632851,-168.24995621,0.00014121,2]
[328376003,1717284632860,-346.17560194,0.00014121,2]
[328376005,1717284632869,-756.35596724,0.00014121,2]
[328376007,1717284632879,-642.62231712,0.00014121,2]
[328376009,1717284632888,-3105.91132803,0.00014121,2]
[328376011,1717284632898,-208.41308782,0.00014121,2]
[328376013,1717284632907,-1687.73622045,0.00014121,2]
[328376015,1717284632917,-306.17517016,0.00014121,2]
[328376017,1717284632927,-249.02412338,0.00014121,2]
[328376019,1717284632937,-211.02279903,0.00014121,2]
[328376020,1717284632947,-657.97669336,0.00014121,2]
[328376021,1717284632957,-210.10333298,0.00014121,2]
[328376022,1717284632967,-268.8327842,0.00014121,2]
[328376023,1717284632977,-237.28714739,0.00014121,2]
[328376024,1717284632986,-156.40090215,0.00014121,2]
[328376025,1717284632996,-220.84264215,0.00014121,2]
[328376026,1717284633005,-357.77244657,0.00014121,2]
[328376027,1717284633015,-424.7108407,0.00014121,2]
[328376028,1717284633025,-155.0,0.00014121,2]
[328376029,1717284633035,-306.44526837,0.00014121,2]
[328376030,1717284633044,-410.00321735,0.00014121,2]
[328376031,1717284633054,-234.75464597,0.00014121,2]
[328376032,1717284633064,-155.81904054,0.00014121,2]
[328376033,1717284633073,-19529.0,0.00014123,2]
[328376034,1717284633082,-357.24,0.00014352,2]
[328376035,1717284633092,-284.74,0.00014384,2]
[328376036,1717284633101,-1000.0,0.00014717,2]
[328376037,1717284633241,-250.0,0.00014743,2]
[328376038,1717284633251,-171.72,0.00014815,2]
[328376039,1717284633261,-180.49244642,0.000149,2]
[328376040,1717284633270,-1918.30725007,0.00015,2]
[328376041,1717284633279,-111413.64556338,0.00015,2]
[328376042,1717284633288,-155.0,0.00015,2]
[328376043,1717284633297,-155.0,0.00015,2]
[328376044,1717284633307,-325.39983263,0.00015,2]
[328376045,1717284633317,-1043.83643081,0.00015,2]